[Event "Titled Tuesday Blitz May 17 Early 2022"]
[White "Ciorgovean, Iustin"]
[Black "Vasquez Schroeder, Rodrigo"]
[WhiteFideId "1242911"]
[BlackFideId "3400042"]
[WhiteElo "2075"]
[BlackElo "2567"]
[Result "0-1"]
[Round "08"]
[TimeControl "180+1"]
[Date "2022.05.17"]
[WhiteClock "0:00:01"]
[BlackClock "0:00:05"]

1. d4 {[%clk 0:03:00]}  d5 {[%clk 0:02:58]} 2. c4 {[%clk 0:02:59]}  c6 {[%clk 0:02:58]} 3. cxd5 {[%clk 0:02:59]}  cxd5 {[%clk 0:02:58]} 4. Bf4 {[%clk 0:02:59]}  Nc6 {[%clk 0:02:58]} 5. e3 {[%clk 0:02:57]}  Nf6 {[%clk 0:02:55]} 6. Bb5 {[%clk 0:02:57]}  Bd7 {[%clk 0:02:48]} 7. Nc3 {[%clk 0:02:56]}  a6 {[%clk 0:02:47]} 8. Bd3 {[%clk 0:02:53]}  Bg4 {[%clk 0:02:45]} 9. Nge2 {[%clk 0:02:53]}  e6 {[%clk 0:02:45]} 10. O-O {[%clk 0:02:52]}  Be7 {[%clk 0:02:43]} 11. Rc1 {[%clk 0:02:47]}  O-O {[%clk 0:02:43]} 12. Na4 {[%clk 0:02:46]}  Nd7 {[%clk 0:02:37]} 13. h3 {[%clk 0:02:42]}  Bh5 {[%clk 0:02:36]} 14. a3 {[%clk 0:02:31]}  Rc8 {[%clk 0:02:23]} 15. b4 {[%clk 0:02:15]}  Bg6 {[%clk 0:02:05]} 16. Nc5 {[%clk 0:02:12]}  Nxc5 {[%clk 0:01:39]} 17. bxc5 {[%clk 0:01:47]}  Na5 {[%clk 0:01:29]} 18. Bxg6 {[%clk 0:01:34]}  hxg6 {[%clk 0:01:30]} 19. Qa4 {[%clk 0:01:28]}  Nc4 {[%clk 0:01:22]} 20. Rxc4 {[%clk 0:01:22]}  dxc4 {[%clk 0:01:21]} 21. Qxc4 {[%clk 0:01:23]}  Qd7 {[%clk 0:01:18]} 22. Qb3 {[%clk 0:01:15]}  Ra8 {[%clk 0:00:50]} 23. Rb1 {[%clk 0:01:12]}  Ra7 {[%clk 0:00:48]} 24. Nc3 {[%clk 0:00:58]}  Qc6 {[%clk 0:00:35]} 25. Na4 {[%clk 0:00:44]}  Bd8 {[%clk 0:00:32]} 26. Bd6 {[%clk 0:00:38]}  Re8 {[%clk 0:00:32]} 27. Nb6 {[%clk 0:00:33]}  Bxb6 {[%clk 0:00:28]} 28. Qxb6 {[%clk 0:00:33]}  Qxb6 {[%clk 0:00:24]} 29. Rxb6 {[%clk 0:00:34]}  Rc8 {[%clk 0:00:23]} 30. Kf1 {[%clk 0:00:32]}  Rc6 {[%clk 0:00:21]} 31. Rb3 {[%clk 0:00:31]}  Rc8 {[%clk 0:00:20]} 32. Ke2 {[%clk 0:00:31]}  f6 {[%clk 0:00:19]} 33. Kd3 {[%clk 0:00:31]}  Kf7 {[%clk 0:00:19]} 34. e4 {[%clk 0:00:26]}  Ke8 {[%clk 0:00:19]} 35. d5 {[%clk 0:00:25]}  Kd7 {[%clk 0:00:20]} 36. Kd4 {[%clk 0:00:24]}  exd5 {[%clk 0:00:19]} 37. exd5 {[%clk 0:00:24]}  Re8 {[%clk 0:00:20]} 38. h4 {[%clk 0:00:16]}  Re1 {[%clk 0:00:20]} 39. Bb8 {[%clk 0:00:15]}  Ra8 {[%clk 0:00:18]} 40. Bg3 {[%clk 0:00:12]}  Rd1+ {[%clk 0:00:18]} 41. Kc4 {[%clk 0:00:12]}  Kc8 {[%clk 0:00:18]} 42. Bd6 {[%clk 0:00:10]}  Ra7 {[%clk 0:00:17]} 43. Rg3 {[%clk 0:00:10]}  b5+ {[%clk 0:00:14]} 44. cxb6 {[%clk 0:00:08]}  Rd7 {[%clk 0:00:14]} 45. Bc5 {[%clk 0:00:06]}  R1xd5 {[%clk 0:00:12]} 46. Rxg6 {[%clk 0:00:06]}  Rd2 {[%clk 0:00:12]} 47. Be3 {[%clk 0:00:04]}  Rc2+ {[%clk 0:00:12]} 48. Kb4 {[%clk 0:00:04]}  Kb7 {[%clk 0:00:12]} 49. h5 {[%clk 0:00:04]}  Rb2+ {[%clk 0:00:11]} 50. Kc3 {[%clk 0:00:03]}  Rb5 {[%clk 0:00:11]} 51. h6 {[%clk 0:00:03]}  gxh6 {[%clk 0:00:12]} 52. Rxf6 {[%clk 0:00:03]}  h5 {[%clk 0:00:12]} 53. Rh6 {[%clk 0:00:03]}  Rbd5 {[%clk 0:00:10]} 54. a4 {[%clk 0:00:04]}  a5 {[%clk 0:00:11]} 55. Kc4 {[%clk 0:00:04]}  Rf5 {[%clk 0:00:07]} 56. Rg6 {[%clk 0:00:03]}  Re7 {[%clk 0:00:07]} 57. Rh6 {[%clk 0:00:04]}  Re4+ {[%clk 0:00:08]} 58. Kd3 {[%clk 0:00:04]}  Rxa4 {[%clk 0:00:07]} 59. Rh7+ {[%clk 0:00:04]}  Kc6 {[%clk 0:00:08]} 60. b7 {[%clk 0:00:04]}  Rb4 {[%clk 0:00:08]} 61. f3 {[%clk 0:00:02]}  Rxb7 {[%clk 0:00:06]} 62. Rh6+ {[%clk 0:00:03]}  Kb5 {[%clk 0:00:07]} 63. g4 {[%clk 0:00:01]}  Rd7+ {[%clk 0:00:06]} 64. Ke4 {[%clk 0:00:01]}  Rfd5 {[%clk 0:00:05]} 65. gxh5 {[%clk 0:00:01]}  Kc4 {[%clk 0:00:05]} 0-1


[Site "https://www.chess.com"]

[Event "Titled Tuesday Blitz May 17 Early 2022"]
[White "Csonka, Balazs"]
[Black "Shimanov, Aleksandr"]
[WhiteFideId "742910"]
[BlackFideId "4198603"]
[WhiteElo "2404"]
[BlackElo "2605"]
[Result "0-1"]
[Round "08"]
[TimeControl "180+1"]
[Date "2022.05.17"]
[WhiteClock "0:00:01"]
[BlackClock "0:00:22"]

1. d4 {[%clk 0:03:00]}  Nf6 {[%clk 0:02:58]} 2. c4 {[%clk 0:03:00]}  g6 {[%clk 0:02:58]} 3. Nc3 {[%clk 0:03:00]}  Bg7 {[%clk 0:02:56]} 4. e4 {[%clk 0:02:54]}  d6 {[%clk 0:02:56]} 5. Nf3 {[%clk 0:02:53]}  O-O {[%clk 0:02:56]} 6. Be2 {[%clk 0:02:54]}  Na6 {[%clk 0:02:56]} 7. O-O {[%clk 0:02:51]}  e5 {[%clk 0:02:54]} 8. Be3 {[%clk 0:02:50]}  c6 {[%clk 0:02:52]} 9. d5 {[%clk 0:02:36]}  Ng4 {[%clk 0:02:51]} 10. Bg5 {[%clk 0:02:35]}  f6 {[%clk 0:02:51]} 11. Bh4 {[%clk 0:02:23]}  c5 {[%clk 0:02:51]} 12. Ne1 {[%clk 0:02:20]}  h5 {[%clk 0:02:50]} 13. Nd3 {[%clk 0:02:14]}  Nh6 {[%clk 0:02:49]} 14. f3 {[%clk 0:02:08]}  Nf7 {[%clk 0:02:49]} 15. Rb1 {[%clk 0:02:01]}  Bh6 {[%clk 0:02:48]} 16. Bf2 {[%clk 0:02:01]}  b6 {[%clk 0:02:43]} 17. b4 {[%clk 0:01:54]}  Bd7 {[%clk 0:02:38]} 18. a4 {[%clk 0:01:32]}  Kg7 {[%clk 0:02:28]} 19. Nb5 {[%clk 0:01:30]}  Qe7 {[%clk 0:02:21]} 20. a5 {[%clk 0:01:24]}  Rfc8 {[%clk 0:02:15]} 21. axb6 {[%clk 0:01:12]}  axb6 {[%clk 0:02:16]} 22. Qb3 {[%clk 0:01:09]}  Bxb5 {[%clk 0:02:10]} 23. cxb5 {[%clk 0:01:09]}  c4 {[%clk 0:02:11]} 24. Qc2 {[%clk 0:00:44]}  cxd3 {[%clk 0:02:10]} 25. Qxd3 {[%clk 0:00:45]}  Nc7 {[%clk 0:02:00]} 26. Ra1 {[%clk 0:00:41]}  Rcb8 {[%clk 0:01:48]} 27. Qc4 {[%clk 0:00:32]}  Nd8 {[%clk 0:01:43]} 28. Rfd1 {[%clk 0:00:23]}  Qd7 {[%clk 0:01:39]} 29. h4 {[%clk 0:00:17]}  Rc8 {[%clk 0:01:34]} 30. Bxb6 {[%clk 0:00:13]}  Rab8 {[%clk 0:00:58]} 31. Bf2 {[%clk 0:00:04]}  Nxb5 {[%clk 0:00:54]} 32. Qd3 {[%clk 0:00:04]}  Nc3 {[%clk 0:00:48]} 33. Re1 {[%clk 0:00:04]}  Rxb4 {[%clk 0:00:45]} 34. Bf1 {[%clk 0:00:04]}  Nb5 {[%clk 0:00:38]} 35. Ra5 {[%clk 0:00:04]}  Nd4 {[%clk 0:00:38]} 36. Rea1 {[%clk 0:00:03]}  Rc7 {[%clk 0:00:34]} 37. Ra8 {[%clk 0:00:03]}  Rb2 {[%clk 0:00:28]} 38. Qa6 {[%clk 0:00:03]}  Nc2 {[%clk 0:00:26]} 39. Ra4 {[%clk 0:00:03]}  Be3 {[%clk 0:00:22]} 40. Bxe3 {[%clk 0:00:01]}  Nxe3 {[%clk 0:00:23]} 41. Bd3 {[%clk 0:00:01]}  Rxg2+ {[%clk 0:00:22]} 0-1


[Site "https://www.chess.com"]

[Event "Titled Tuesday Blitz May 17 Early 2022"]
[White "Dubov, Daniil"]
[Black "Nakamura, Hikaru"]
[WhiteFideId "24126055"]
[BlackFideId "2016192"]
[WhiteElo "2791"]
[BlackElo "2850"]
[Result "1/2-1/2"]
[Round "08"]
[TimeControl "180+1"]
[Date "2022.05.17"]
[WhiteClock "0:01:30"]
[BlackClock "0:02:42"]

1. d4 {[%clk 0:03:00]}  Nf6 {[%clk 0:02:59]} 2. c4 {[%clk 0:02:59]}  e6 {[%clk 0:02:59]} 3. Nf3 {[%clk 0:03:00]}  d5 {[%clk 0:03:00]} 4. g3 {[%clk 0:03:00]}  Be7 {[%clk 0:02:59]} 5. Bg2 {[%clk 0:03:00]}  O-O {[%clk 0:03:00]} 6. O-O {[%clk 0:03:01]}  dxc4 {[%clk 0:03:01]} 7. Qc2 {[%clk 0:03:01]}  b5 {[%clk 0:03:01]} 8. a4 {[%clk 0:02:58]}  Bb7 {[%clk 0:03:01]} 9. axb5 {[%clk 0:02:57]}  a6 {[%clk 0:03:01]} 10. bxa6 {[%clk 0:02:53]}  Nxa6 {[%clk 0:03:02]} 11. Qxc4 {[%clk 0:02:52]}  Bd5 {[%clk 0:03:02]} 12. Qc3 {[%clk 0:02:52]}  c5 {[%clk 0:03:03]} 13. Be3 {[%clk 0:02:49]}  Ne4 {[%clk 0:03:03]} 14. Qe1 {[%clk 0:02:49]}  Nb4 {[%clk 0:03:03]} 15. Nc3 {[%clk 0:02:27]}  Nxc3 {[%clk 0:03:03]} 16. bxc3 {[%clk 0:02:24]}  Nc2 {[%clk 0:02:58]} 17. Rxa8 {[%clk 0:02:22]}  Qxa8 {[%clk 0:02:58]} 18. Qc1 {[%clk 0:02:22]}  cxd4 {[%clk 0:02:59]} 19. cxd4 {[%clk 0:02:21]}  Nxe3 {[%clk 0:02:59]} 20. Qxe3 {[%clk 0:02:21]}  Bf6 {[%clk 0:03:00]} 21. Qf4 {[%clk 0:02:17]}  Qb8 {[%clk 0:03:00]} 22. Qxb8 {[%clk 0:02:11]}  Rxb8 {[%clk 0:03:00]} 23. e3 {[%clk 0:02:11]}  Bxf3 {[%clk 0:03:00]} 24. Bxf3 {[%clk 0:02:11]}  g6 {[%clk 0:03:00]} 25. Rc1 {[%clk 0:02:08]}  Re8 {[%clk 0:02:58]} 26. Kg2 {[%clk 0:02:03]}  Kg7 {[%clk 0:02:57]} 27. Rc2 {[%clk 0:02:02]}  Re7 {[%clk 0:02:57]} 28. Be4 {[%clk 0:01:57]}  Ra7 {[%clk 0:02:55]} 29. d5 {[%clk 0:01:46]}  exd5 {[%clk 0:02:46]} 30. Bxd5 {[%clk 0:01:47]}  Bd8 {[%clk 0:02:46]} 31. Rc6 {[%clk 0:01:41]}  Rc7 {[%clk 0:02:45]} 32. Ra6 {[%clk 0:01:38]}  Be7 {[%clk 0:02:44]} 33. Be4 {[%clk 0:01:33]}  Bc5 {[%clk 0:02:43]} 34. Bc6 {[%clk 0:01:30]}  Ra7 {[%clk 0:02:42]} 1/2-1/2


[Site "https://www.chess.com"]

[Event "Titled Tuesday Blitz May 17 Early 2022"]
[White "Garriga Cazorla, Pere"]
[Black "Svane, Rasmus"]
[WhiteFideId "32011601"]
[BlackFideId "4657101"]
[WhiteElo "2433"]
[BlackElo "2674"]
[Result "0-1"]
[Round "08"]
[TimeControl "180+1"]
[Date "2022.05.17"]
[WhiteClock "0:00:09"]
[BlackClock "0:00:09"]

1. d4 {[%clk 0:02:55]}  Nf6 {[%clk 0:02:58]} 2. c4 {[%clk 0:02:55]}  e6 {[%clk 0:02:58]} 3. Nc3 {[%clk 0:02:56]}  Bb4 {[%clk 0:02:57]} 4. e3 {[%clk 0:02:56]}  O-O {[%clk 0:02:56]} 5. Bd3 {[%clk 0:02:56]}  d5 {[%clk 0:02:55]} 6. cxd5 {[%clk 0:02:56]}  exd5 {[%clk 0:02:56]} 7. Ne2 {[%clk 0:02:57]}  Re8 {[%clk 0:02:55]} 8. a3 {[%clk 0:02:57]}  Bd6 {[%clk 0:02:52]} 9. b4 {[%clk 0:02:57]}  c6 {[%clk 0:02:32]} 10. Rb1 {[%clk 0:02:56]}  Ne4 {[%clk 0:02:12]} 11. O-O {[%clk 0:02:51]}  Bf5 {[%clk 0:02:08]} 12. f3 {[%clk 0:02:44]}  Nxc3 {[%clk 0:02:08]} 13. Nxc3 {[%clk 0:02:45]}  Qh4 {[%clk 0:01:58]} 14. f4 {[%clk 0:02:29]}  Bxd3 {[%clk 0:01:58]} 15. Qxd3 {[%clk 0:02:29]}  Nd7 {[%clk 0:01:58]} 16. e4 {[%clk 0:02:28]}  dxe4 {[%clk 0:01:54]} 17. Nxe4 {[%clk 0:02:28]}  Bc7 {[%clk 0:01:47]} 18. Bd2 {[%clk 0:02:21]}  Rad8 {[%clk 0:01:43]} 19. Rbe1 {[%clk 0:02:17]}  Bb6 {[%clk 0:01:43]} 20. Be3 {[%clk 0:01:55]}  Nf6 {[%clk 0:01:33]} 21. Nc5 {[%clk 0:01:33]}  Bxc5 {[%clk 0:01:32]} 22. bxc5 {[%clk 0:01:34]}  Nd5 {[%clk 0:01:31]} 23. g3 {[%clk 0:01:30]}  Qg4 {[%clk 0:01:27]} 24. Bd2 {[%clk 0:01:26]}  h5 {[%clk 0:01:20]} 25. Qf3 {[%clk 0:01:12]}  Rxe1 {[%clk 0:01:11]} 26. Bxe1 {[%clk 0:01:13]}  Qf5 {[%clk 0:01:01]} 27. Bf2 {[%clk 0:01:07]}  Re8 {[%clk 0:00:59]} 28. Kg2 {[%clk 0:01:02]}  Qc2 {[%clk 0:00:55]} 29. Kg1 {[%clk 0:00:58]}  Nf6 {[%clk 0:00:55]} 30. h3 {[%clk 0:00:55]}  Re2 {[%clk 0:00:47]} 31. Re1 {[%clk 0:00:43]}  Rxe1+ {[%clk 0:00:48]} 32. Bxe1 {[%clk 0:00:44]}  g6 {[%clk 0:00:44]} 33. g4 {[%clk 0:00:43]}  hxg4 {[%clk 0:00:44]} 34. hxg4 {[%clk 0:00:44]}  Qc1 {[%clk 0:00:36]} 35. Kf1 {[%clk 0:00:41]}  Qc4+ {[%clk 0:00:35]} 36. Kg2 {[%clk 0:00:37]}  Qc2+ {[%clk 0:00:31]} 37. Kh3 {[%clk 0:00:31]}  Qc1 {[%clk 0:00:25]} 38. Bh4 {[%clk 0:00:19]}  Nd5 {[%clk 0:00:23]} 39. f5 {[%clk 0:00:19]}  Qe3 {[%clk 0:00:21]} 40. Qxe3 {[%clk 0:00:19]}  Nxe3 {[%clk 0:00:22]} 41. fxg6 {[%clk 0:00:19]}  fxg6 {[%clk 0:00:22]} 42. Kg3 {[%clk 0:00:15]}  Nc2 {[%clk 0:00:14]} 43. Kf4 {[%clk 0:00:15]}  Nxa3 {[%clk 0:00:13]} 44. Ke5 {[%clk 0:00:14]}  a5 {[%clk 0:00:13]} 45. Be1 {[%clk 0:00:12]}  a4 {[%clk 0:00:13]} 46. Ke6 {[%clk 0:00:10]}  Nc2 {[%clk 0:00:12]} 47. Bc3 {[%clk 0:00:10]}  a3 {[%clk 0:00:09]} 48. Kd7 {[%clk 0:00:10]}  Kf7 {[%clk 0:00:09]} 49. d5 {[%clk 0:00:08]}  cxd5 {[%clk 0:00:09]} 50. Kc7 {[%clk 0:00:09]}  d4 {[%clk 0:00:09]} 0-1


[Site "https://www.chess.com"]

[Event "Titled Tuesday Blitz May 17 Early 2022"]
[White "Dronavalli, Harika"]
[Black "Yuan, Qingyu"]
[WhiteFideId "5015197"]
[BlackFideId "8609772"]
[WhiteElo "2382"]
[BlackElo "2359"]
[Result "0-1"]
[Round "08"]
[TimeControl "180+1"]
[Date "2022.05.17"]
[WhiteClock "0:00:34"]
[BlackClock "0:00:15"]

1. e4 {[%clk 0:03:00]}  c6 {[%clk 0:02:59]} 2. d4 {[%clk 0:03:00]}  d5 {[%clk 0:02:59]} 3. exd5 {[%clk 0:02:59]}  cxd5 {[%clk 0:03:00]} 4. c3 {[%clk 0:03:00]}  Nc6 {[%clk 0:03:00]} 5. Bf4 {[%clk 0:03:00]}  Nf6 {[%clk 0:03:00]} 6. Nd2 {[%clk 0:02:59]}  Bg4 {[%clk 0:02:57]} 7. Ngf3 {[%clk 0:02:57]}  e6 {[%clk 0:02:57]} 8. Qb3 {[%clk 0:02:54]}  Bd6 {[%clk 0:02:50]} 9. Bxd6 {[%clk 0:02:53]}  Qxd6 {[%clk 0:02:50]} 10. Bd3 {[%clk 0:02:54]}  O-O {[%clk 0:02:49]} 11. O-O {[%clk 0:02:55]}  Qc7 {[%clk 0:02:38]} 12. Rae1 {[%clk 0:02:52]}  Bxf3 {[%clk 0:02:38]} 13. Nxf3 {[%clk 0:02:51]}  a6 {[%clk 0:02:31]} 14. a4 {[%clk 0:02:51]}  Rfb8 {[%clk 0:02:21]} 15. Qc2 {[%clk 0:02:50]}  g6 {[%clk 0:02:15]} 16. b4 {[%clk 0:02:35]}  a5 {[%clk 0:02:06]} 17. b5 {[%clk 0:02:35]}  Ne7 {[%clk 0:02:04]} 18. Qd2 {[%clk 0:02:35]}  Kg7 {[%clk 0:02:01]} 19. h3 {[%clk 0:02:27]}  Nc8 {[%clk 0:01:52]} 20. Ne5 {[%clk 0:02:17]}  Nb6 {[%clk 0:01:46]} 21. Ra1 {[%clk 0:02:13]}  Rc8 {[%clk 0:01:40]} 22. Rfc1 {[%clk 0:02:13]}  Qe7 {[%clk 0:01:29]} 23. Re1 {[%clk 0:01:26]}  Rc7 {[%clk 0:01:25]} 24. Re3 {[%clk 0:01:26]}  Rac8 {[%clk 0:01:23]} 25. Bc2 {[%clk 0:00:47]}  Nfd7 {[%clk 0:01:23]} 26. Bb3 {[%clk 0:00:40]}  Nxe5 {[%clk 0:01:20]} 27. dxe5 {[%clk 0:00:41]}  Qg5 {[%clk 0:01:16]} 28. Qd4 {[%clk 0:00:32]}  Nd7 {[%clk 0:01:08]} 29. f4 {[%clk 0:00:32]}  Qe7 {[%clk 0:01:06]} 30. g4 {[%clk 0:00:30]}  Qc5 {[%clk 0:01:00]} 31. f5 {[%clk 0:00:30]}  Qxd4 {[%clk 0:00:56]} 32. cxd4 {[%clk 0:00:30]}  Rc3 {[%clk 0:00:45]} 33. Rae1 {[%clk 0:00:30]}  g5 {[%clk 0:00:45]} 34. f6+ {[%clk 0:00:27]}  Kg8 {[%clk 0:00:35]} 35. Kf2 {[%clk 0:00:27]}  Rxe3 {[%clk 0:00:29]} 36. Rxe3 {[%clk 0:00:26]}  Nf8 {[%clk 0:00:28]} 37. Ke1 {[%clk 0:00:24]}  b6 {[%clk 0:00:23]} 38. Kd2 {[%clk 0:00:24]}  Ng6 {[%clk 0:00:24]} 39. Bc2 {[%clk 0:00:24]}  Nf4 {[%clk 0:00:24]} 40. Bd3 {[%clk 0:00:19]}  h6 {[%clk 0:00:23]} 41. Bf1 {[%clk 0:00:19]}  Ng6 {[%clk 0:00:19]} 42. Rf3 {[%clk 0:00:19]}  Kf8 {[%clk 0:00:19]} 43. Bd3 {[%clk 0:00:19]}  Nh4 {[%clk 0:00:14]} 44. Rg3 {[%clk 0:00:18]}  Ke8 {[%clk 0:00:14]} 45. Re3 {[%clk 0:00:18]}  Kd7 {[%clk 0:00:15]} 46. Rg3 {[%clk 0:00:18]}  Rb8 {[%clk 0:00:14]} 47. Kc2 {[%clk 0:00:19]}  Ra8 {[%clk 0:00:14]} 48. Kd2 {[%clk 0:00:19]}  Rc8 {[%clk 0:00:15]} 49. Re3 {[%clk 0:00:18]}  Ng2 {[%clk 0:00:15]} 50. Rf3 {[%clk 0:00:18]}  Nf4 {[%clk 0:00:15]} 51. Bf1 {[%clk 0:00:18]}  h5 {[%clk 0:00:11]} 52. gxh5 {[%clk 0:00:18]}  Rh8 {[%clk 0:00:11]} 53. Rg3 {[%clk 0:00:17]}  Rxh5 {[%clk 0:00:09]} 54. Rg4 {[%clk 0:00:18]}  Ke8 {[%clk 0:00:05]} 55. Rg3 {[%clk 0:00:18]}  Kf8 {[%clk 0:00:05]} 56. Rg4 {[%clk 0:00:19]}  Ng6 {[%clk 0:00:04]} 57. Rg3 {[%clk 0:00:19]}  Kg8 {[%clk 0:00:05]} 58. Bd3 {[%clk 0:00:19]}  Nf4 {[%clk 0:00:05]} 59. h4 {[%clk 0:00:19]}  Nxd3 {[%clk 0:00:02]} 60. Kxd3 {[%clk 0:00:18]}  Kh7 {[%clk 0:00:03]} 61. Rxg5 {[%clk 0:00:19]}  Rxg5 {[%clk 0:00:03]} 62. hxg5 {[%clk 0:00:20]}  Kg6 {[%clk 0:00:03]} 63. Ke3 {[%clk 0:00:20]}  Kxg5 {[%clk 0:00:04]} 64. Kf3 {[%clk 0:00:21]}  Kf5 {[%clk 0:00:05]} 65. Kg3 {[%clk 0:00:21]}  Ke4 {[%clk 0:00:04]} 66. Kg4 {[%clk 0:00:22]}  Kxd4 {[%clk 0:00:05]} 67. Kf4 {[%clk 0:00:23]}  Kd3 {[%clk 0:00:02]} 68. Kg5 {[%clk 0:00:24]}  Ke4 {[%clk 0:00:02]} 69. Kh6 {[%clk 0:00:24]}  d4 {[%clk 0:00:02]} 70. Kg7 {[%clk 0:00:25]}  d3 {[%clk 0:00:03]} 71. Kxf7 {[%clk 0:00:26]}  d2 {[%clk 0:00:04]} 72. Ke7 {[%clk 0:00:26]}  d1=Q {[%clk 0:00:05]} 73. f7 {[%clk 0:00:27]}  Qxa4 {[%clk 0:00:04]} 74. f8=Q {[%clk 0:00:27]}  Qb4+ {[%clk 0:00:05]} 75. Kf7 {[%clk 0:00:26]}  Qxf8+ {[%clk 0:00:06]} 76. Kxf8 {[%clk 0:00:27]}  Kxe5 {[%clk 0:00:06]} 77. Ke8 {[%clk 0:00:27]}  Kd5 {[%clk 0:00:07]} 78. Ke7 {[%clk 0:00:27]}  Kc5 {[%clk 0:00:08]} 79. Kd7 {[%clk 0:00:28]}  Kxb5 {[%clk 0:00:09]} 80. Kxe6 {[%clk 0:00:29]}  a4 {[%clk 0:00:10]} 81. Kd5 {[%clk 0:00:30]}  a3 {[%clk 0:00:11]} 82. Kd4 {[%clk 0:00:31]}  a2 {[%clk 0:00:12]} 83. Kc3 {[%clk 0:00:31]}  a1=Q+ {[%clk 0:00:12]} 84. Kc2 {[%clk 0:00:32]}  Qa4+ {[%clk 0:00:13]} 85. Kd3 {[%clk 0:00:32]}  Ka5 {[%clk 0:00:13]} 86. Ke3 {[%clk 0:00:33]}  b5 {[%clk 0:00:14]} 87. Kf3 {[%clk 0:00:34]}  b4 {[%clk 0:00:15]} 0-1


[Site "https://www.chess.com"]

[Event "Titled Tuesday Blitz May 17 Early 2022"]
[White "Indjic, Aleksandar"]
[Black "Matinian, Nikita"]
[WhiteFideId "911925"]
[BlackFideId "24129100"]
[WhiteElo "2616"]
[BlackElo "2422"]
[Result "1-0"]
[Round "08"]
[TimeControl "180+1"]
[Date "2022.05.17"]
[WhiteClock "0:00:19"]
[BlackClock "0:00:07"]

1. d4 {[%clk 0:03:00]}  Nf6 {[%clk 0:02:59]} 2. c4 {[%clk 0:03:01]}  g6 {[%clk 0:02:59]} 3. Nc3 {[%clk 0:03:01]}  Bg7 {[%clk 0:03:00]} 4. e4 {[%clk 0:02:58]}  O-O {[%clk 0:03:00]} 5. Nf3 {[%clk 0:02:58]}  d6 {[%clk 0:03:00]} 6. Be2 {[%clk 0:02:58]}  e5 {[%clk 0:03:00]} 7. O-O {[%clk 0:02:59]}  h6 {[%clk 0:03:00]} 8. d5 {[%clk 0:02:58]}  a5 {[%clk 0:03:00]} 9. Ne1 {[%clk 0:02:48]}  Na6 {[%clk 0:02:59]} 10. Be3 {[%clk 0:02:47]}  Nc5 {[%clk 0:02:54]} 11. f3 {[%clk 0:02:46]}  Ne8 {[%clk 0:02:53]} 12. a3 {[%clk 0:02:45]}  Bd7 {[%clk 0:02:50]} 13. b4 {[%clk 0:02:45]}  axb4 {[%clk 0:02:50]} 14. axb4 {[%clk 0:02:45]}  Rxa1 {[%clk 0:02:51]} 15. Qxa1 {[%clk 0:02:46]}  Nb3 {[%clk 0:02:52]} 16. Qb2 {[%clk 0:02:43]}  Nd4 {[%clk 0:02:51]} 17. Bd3 {[%clk 0:02:44]}  f5 {[%clk 0:02:45]} 18. c5 {[%clk 0:02:43]}  Nf6 {[%clk 0:02:38]} 19. Nc2 {[%clk 0:02:42]}  fxe4 {[%clk 0:02:38]} 20. Bxe4 {[%clk 0:02:41]}  Nxe4 {[%clk 0:02:34]} 21. Nxe4 {[%clk 0:02:40]}  Bb5 {[%clk 0:02:25]} 22. Rf2 {[%clk 0:02:30]}  Ne2+ {[%clk 0:02:03]} 23. Kh1 {[%clk 0:02:18]}  Nf4 {[%clk 0:01:58]} 24. cxd6 {[%clk 0:02:14]}  Nd3 {[%clk 0:01:53]} 25. dxc7 {[%clk 0:02:09]}  Nxf2+ {[%clk 0:01:42]} 26. Bxf2 {[%clk 0:02:08]}  Qxd5 {[%clk 0:01:42]} 27. Ne3 {[%clk 0:02:03]}  Qc6 {[%clk 0:01:39]} 28. Qc3 {[%clk 0:01:38]}  Rc8 {[%clk 0:01:30]} 29. Qxc6 {[%clk 0:01:11]}  bxc6 {[%clk 0:01:31]} 30. h4 {[%clk 0:01:07]}  Rxc7 {[%clk 0:01:30]} 31. Ng4 {[%clk 0:01:08]}  h5 {[%clk 0:01:05]} 32. Ngf6+ {[%clk 0:01:08]}  Bxf6 {[%clk 0:01:05]} 33. Nxf6+ {[%clk 0:01:07]}  Kf7 {[%clk 0:01:05]} 34. Ne4 {[%clk 0:01:07]}  Rd7 {[%clk 0:01:01]} 35. Bg3 {[%clk 0:01:05]}  Rd1+ {[%clk 0:01:00]} 36. Kh2 {[%clk 0:01:05]}  Ke6 {[%clk 0:01:00]} 37. Ng5+ {[%clk 0:01:02]}  Kd5 {[%clk 0:00:56]} 38. Nf7 {[%clk 0:01:03]}  e4 {[%clk 0:00:53]} 39. fxe4+ {[%clk 0:00:36]}  Kxe4 {[%clk 0:00:54]} 40. Ne5 {[%clk 0:00:36]}  Rb1 {[%clk 0:00:48]} 41. Nxg6 {[%clk 0:00:35]}  Rxb4 {[%clk 0:00:48]} 42. Nf4 {[%clk 0:00:36]}  c5 {[%clk 0:00:40]} 43. Nxh5 {[%clk 0:00:36]}  c4 {[%clk 0:00:40]} 44. Nf6+ {[%clk 0:00:34]}  Kf5 {[%clk 0:00:29]} 45. Nd5 {[%clk 0:00:34]}  Rb3 {[%clk 0:00:28]} 46. Be1 {[%clk 0:00:32]}  Kg4 {[%clk 0:00:25]} 47. Nf6+ {[%clk 0:00:30]}  Kf5 {[%clk 0:00:23]} 48. Nd5 {[%clk 0:00:30]}  Ke4 {[%clk 0:00:16]} 49. Nc3+ {[%clk 0:00:27]}  Kd3 {[%clk 0:00:16]} 50. h5 {[%clk 0:00:25]}  Be8 {[%clk 0:00:15]} 51. h6 {[%clk 0:00:25]}  Bg6 {[%clk 0:00:14]} 52. Nd5 {[%clk 0:00:25]}  Ke4 {[%clk 0:00:10]} 53. h7 {[%clk 0:00:25]}  Bxh7 {[%clk 0:00:08]} 54. Nf6+ {[%clk 0:00:26]}  Kf5 {[%clk 0:00:08]} 55. Nxh7 {[%clk 0:00:26]}  Rb7 {[%clk 0:00:07]} 56. Nf8 {[%clk 0:00:19]} 1-0


[Site "https://www.chess.com"]

[Event "Titled Tuesday Blitz May 17 Early 2022"]
[White "Kamsky, Gata"]
[Black "Sadhwani, Raunak"]
[WhiteFideId "2000024"]
[BlackFideId "35093487"]
[WhiteElo "2645"]
[BlackElo "2616"]
[Result "1-0"]
[Round "08"]
[TimeControl "180+1"]
[Date "2022.05.17"]
[WhiteClock "0:00:32"]
[BlackClock "0:00:18"]

1. e4 {[%clk 0:03:00]}  e5 {[%clk 0:03:00]} 2. Nf3 {[%clk 0:03:00]}  Nc6 {[%clk 0:03:01]} 3. Bb5 {[%clk 0:03:00]}  Nge7 {[%clk 0:03:01]} 4. O-O {[%clk 0:02:55]}  Ng6 {[%clk 0:03:01]} 5. c3 {[%clk 0:02:54]}  a6 {[%clk 0:03:01]} 6. Ba4 {[%clk 0:02:54]}  d5 {[%clk 0:03:01]} 7. exd5 {[%clk 0:02:39]}  Qxd5 {[%clk 0:03:01]} 8. Bb3 {[%clk 0:02:31]}  Qd3 {[%clk 0:03:01]} 9. Bc2 {[%clk 0:02:23]}  Qd6 {[%clk 0:02:59]} 10. Re1 {[%clk 0:02:14]}  Be7 {[%clk 0:02:32]} 11. h3 {[%clk 0:01:59]}  Be6 {[%clk 0:02:25]} 12. d3 {[%clk 0:01:56]}  O-O {[%clk 0:02:19]} 13. Nbd2 {[%clk 0:01:55]}  f5 {[%clk 0:02:07]} 14. Nc4 {[%clk 0:01:42]}  Bxc4 {[%clk 0:02:06]} 15. dxc4 {[%clk 0:01:40]}  e4 {[%clk 0:01:44]} 16. Qxd6 {[%clk 0:01:38]}  Bxd6 {[%clk 0:01:45]} 17. Nd4 {[%clk 0:01:34]}  Nce5 {[%clk 0:01:45]} 18. c5 {[%clk 0:01:31]}  Bxc5 {[%clk 0:01:25]} 19. Ne6 {[%clk 0:01:29]}  Bd6 {[%clk 0:01:20]} 20. Nxf8 {[%clk 0:01:28]}  Rxf8 {[%clk 0:01:20]} 21. Bd2 {[%clk 0:01:20]}  Nc4 {[%clk 0:01:07]} 22. Bb3 {[%clk 0:01:19]}  b5 {[%clk 0:01:08]} 23. Bxc4+ {[%clk 0:00:50]}  bxc4 {[%clk 0:01:09]} 24. b3 {[%clk 0:00:50]}  Ne5 {[%clk 0:00:55]} 25. Bf4 {[%clk 0:00:47]}  Nd3 {[%clk 0:00:55]} 26. Bxd6 {[%clk 0:00:47]}  cxd6 {[%clk 0:00:56]} 27. Reb1 {[%clk 0:00:39]}  d5 {[%clk 0:00:27]} 28. bxc4 {[%clk 0:00:38]}  dxc4 {[%clk 0:00:28]} 29. Rb6 {[%clk 0:00:38]}  Re8 {[%clk 0:00:28]} 30. Rab1 {[%clk 0:00:37]}  Re5 {[%clk 0:00:28]} 31. Rxa6 {[%clk 0:00:36]}  f4 {[%clk 0:00:21]} 32. Rb8+ {[%clk 0:00:33]}  Kf7 {[%clk 0:00:20]} 33. Rb7+ {[%clk 0:00:34]}  Re7 {[%clk 0:00:20]} 34. Rxe7+ {[%clk 0:00:34]}  Kxe7 {[%clk 0:00:21]} 35. Rc6 {[%clk 0:00:32]}  Ne5 {[%clk 0:00:18]} 36. Rc7+ {[%clk 0:00:33]}  Kf6 {[%clk 0:00:18]} 37. a4 {[%clk 0:00:32]} 1-0


[Site "https://www.chess.com"]